bitfinex-derivatives/quotes_BTCF0:USTF0_20241104
["timestamp","ask_amount","ask_price","bid_price","bid_amount"]
[1730727088865,0.001,69162.0,69154.0,0.3608]
[1730727089158,0.073341,69162.0,69161.0,0.072342]
[1730727089461,0.001,69162.0,69161.0,0.433142]
[1730727089651,0.004,69162.0,69161.0,0.072342]
[1730727090951,0.005,69162.0,69161.0,0.077342]
[1730727091462,0.002,69162.0,69161.0,0.082342]
[1730727091963,0.002,69162.0,69161.0,0.01]
[1730727091964,0.21336327,69162.0,69161.0,0.01]
[1730727092163,0.21336327,69162.0,69161.0,0.005]
[1730727092164,0.21236327,69162.0,69161.0,0.005]
[1730727092370,0.21236327,69162.0,69152.0,0.072357]
[1730727092371,0.072357,69153.0,69152.0,0.072357]
[1730727093561,0.13901527,69156.0,69147.0,0.10962587]
[1730727093764,0.072361,69150.0,69149.0,0.072361]
[1730727094064,0.072363,69147.0,69146.0,0.072364]
[1730727094256,0.21137727,69150.0,69149.0,0.072361]
[1730727095460,0.072366,69146.0,69145.0,0.072365]
[1730727097367,0.073366,69146.0,69145.0,0.082365]
[1730727097959,0.074366,69146.0,69145.0,0.087365]
[1730727100565,0.002,69146.0,69145.0,0.087365]
[1730727101957,0.074365,69146.0,69145.0,0.087365]
[1730727107366,0.002,69146.0,69145.0,0.087365]
[1730727107671,0.002,69146.0,69145.0,0.13016851]
[1730727108271,0.002,69146.0,69145.0,0.087365]
[1730727108471,0.074365,69146.0,69145.0,0.13016851]
[1730727108672,0.074365,69146.0,69145.0,0.087365]
[1730727108870,0.074365,69146.0,69145.0,0.015]
[1730727109386,1.214365,69146.0,69145.0,0.015]
[1730727109967,1.214365,69146.0,69142.0,0.00216961]
[1730727109968,0.072368,69143.0,69142.0,0.00216961]
[1730727110167,0.968728,69143.0,69142.0,0.00216961]
[1730727110574,1.03537527,69143.0,69131.0,0.04292181]
[1730727110881,0.433179,69132.0,69131.0,0.04292181]
[1730727111071,0.072381,69130.0,69128.0,0.04292181]
[1730727111383,0.57219727,69129.0,69128.0,0.04292181]
[1730727111678,0.072383,69128.0,69127.0,0.11530581]
[1730727111866,0.072383,69128.0,69127.0,0.072384]
[1730727114876,0.3608,69129.0,69128.0,0.072383]
[1730727115372,0.433182,69129.0,69128.0,0.072383]
[1730727117477,0.57219727,69129.0,69128.0,0.072383]
[1730727118676,0.57219727,69129.0,69128.0,0.11532996]
[1730727119979,0.57219727,69129.0,69128.0,0.072383]
[1730727120163,0.57219727,69129.0,69128.0,0.11533468]
[1730727120566,0.57219727,69129.0,69128.0,0.072383]
[1730727122078,0.49981527,69129.0,69125.0,0.05707134]
[1730727122269,0.49981527,69129.0,69118.0,0.07133918]
[1730727122270,0.433182,69129.0,69128.0,0.04298777]
[1730727122475,0.072383,69128.0,69127.0,0.04298777]
[1730727122974,0.3608,69129.0,69125.0,0.05707134]
[1730727123178,0.3608,69129.0,69128.0,0.072383]
[1730727123179,0.433183,69129.0,69128.0,0.072383]
[1730727123678,0.433183,69129.0,69128.0,0.12969482]
[1730727124072,0.072378,69134.0,69133.0,0.072378]
[1730727124280,0.072378,69134.0,69128.0,0.072383]
[1730727124281,0.3608,69135.0,69134.0,0.072377]
[1730727124475,0.3608,69135.0,69134.0,0.11535789]
[1730727124680,0.433176,69135.0,69134.0,0.11535805]
[1730727124881,0.3608,69135.0,69134.0,0.072377]
[1730727125082,0.3608,69142.0,69139.0,0.072372]
[1730727125083,0.072371,69140.0,69139.0,0.072372]
[1730727125287,0.3608,69142.0,69141.0,0.07237]
[1730727125474,0.072367,69144.0,69143.0,0.072368]
[1730727125675,0.072367,69144.0,69143.0,0.11533473]
[1730727125876,0.0021704,69146.0,69145.0,0.072366]
[1730727126082,0.21355067,69146.0,69145.0,0.072366]
[1730727126378,0.21355067,69146.0,69142.0,0.05730947]
[1730727126379,0.072368,69143.0,69142.0,0.12967747]
[1730727126782,0.14118567,69146.0,69142.0,0.05730947]
[1730727126988,0.21355067,69146.0,69145.0,0.072366]
[1730727127181,0.072368,69143.0,69142.0,0.12967747]
[1730727127485,0.072368,69143.0,69142.0,0.072368]
[1730727127684,0.072368,69143.0,69137.0,0.07133918]
[1730727127685,0.14818567,69146.0,69145.0,0.072366]
[1730727127883,0.14818567,69146.0,69143.0,0.05730341]
[1730727128084,0.21755067,69146.0,69145.0,0.04297986]
[1730727128284,0.22655067,69146.0,69145.0,0.04297986]
[1730727128477,0.072366,69145.0,69144.0,0.04297986]
[1730727128677,0.15418567,69146.0,69141.0,0.05730341]
[1730727128678,0.072369,69142.0,69141.0,0.04297986]
[1730727128978,0.072369,69142.0,69138.0,0.04297986]
[1730727128979,0.072372,69139.0,69138.0,0.04297986]
[1730727129177,0.21138727,69139.0,69138.0,0.04297986]
[1730727129579,0.072375,69136.0,69135.0,0.08730341]
[1730727129777,0.433175,69136.0,69135.0,0.03]
[1730727130094,0.433175,69136.0,69135.0,0.102376]
[1730727130986,0.072378,69133.0,69132.0,0.17411818]
[1730727131184,0.21139327,69133.0,69132.0,0.17411818]
[1730727131381,0.21139327,69133.0,69132.0,0.102779]
[1730727131588,0.072378,69133.0,69132.0,0.102779]
[1730727131779,0.435175,69136.0,69135.0,0.072376]
[1730727131974,0.3628,69136.0,69135.0,0.072376]
[1730727132984,0.3608,69136.0,69135.0,0.14407943]
[1730727133487,0.3608,69136.0,69135.0,0.23134078]
[1730727133696,0.433175,69136.0,69135.0,0.23134078]
[1730727134382,0.438175,69136.0,69135.0,0.23134078]
[1730727134578,0.438175,69136.0,69135.0,0.15963735]
[1730727135087,0.433175,69136.0,69135.0,0.15963735]
[1730727137091,0.433175,69136.0,69135.0,0.08726135]
[1730727138696,0.435175,69136.0,69135.0,0.15963735]
[1730727139192,0.433175,69136.0,69135.0,0.15963735]
[1730727139387,0.436175,69136.0,69135.0,0.15963735]
[1730727140689,0.438175,69136.0,69135.0,0.15967923]
[1730727144593,0.438175,69136.0,69135.0,0.24528625]
[1730727145102,0.438175,69136.0,69135.0,0.15967923]
[1730727145398,0.438175,69136.0,69135.0,0.15984191]
[1730727146199,0.438175,69136.0,69135.0,0.08746591]
[1730727146592,0.438175,69136.0,69135.0,0.159617]
[1730727146787,0.072376,69135.0,69134.0,0.07186373]
[1730727146992,0.21139127,69135.0,69134.0,0.07186373]
[1730727147198,1.35139127,69135.0,69134.0,0.07186373]
[1730727147601,0.21139127,69135.0,69133.0,0.07186373]
[1730727147792,0.072377,69134.0,69133.0,0.07186373]
[1730727149096,0.072377,69134.0,69133.0,0.15978848]
[1730727149289,0.072377,69134.0,69133.0,0.07186373]
[1730727149489,0.072377,69134.0,69133.0,0.15980393]
[1730727149490,0.073377,69134.0,69133.0,0.15980393]
[1730727150499,0.072382,69129.0,69126.0,0.15858402]
[1730727150700,0.43496,69134.0,69124.0,0.08619902]
[1730727150701,0.49981527,69127.0,69124.0,0.08619902]
[1730727150893,0.57219927,69127.0,69123.0,0.08619902]
[1730727151098,0.072387,69125.0,69124.0,0.08820501]
[1730727151401,0.072387,69125.0,69114.0,0.0021701]
[1730727151402,0.072397,69115.0,69114.0,0.0021701]
[1730727151611,0.433197,69115.0,69114.0,0.0745681]
[1730727152107,0.433197,69115.0,69114.0,0.0021701]
[1730727152295,0.57221227,69115.0,69114.0,0.0021701]
[1730727152905,0.57321227,69115.0,69114.0,0.0021701]
[1730727153500,0.57421227,69115.0,69114.0,0.0021701]
[1730727154012,0.57421227,69115.0,69114.0,0.09069089]
[1730727154607,0.57421227,69115.0,69114.0,0.0021701]
[1730727154812,0.57421227,69115.0,69114.0,0.09057506]
[1730727155012,0.57421227,69115.0,69114.0,0.16297306]
[1730727155507,0.57421227,69115.0,69114.0,0.0739912]
[1730727155703,0.57421227,69115.0,69114.0,0.0021701]
[1730727156209,0.57421227,69115.0,69114.0,0.0739912]
[1730727157508,0.57421227,69115.0,69114.0,0.1463892]
[1730727160311,0.57421227,69115.0,69114.0,0.0745681]
[1730727161011,0.57421227,69115.0,69114.0,0.0021701]
[1730727162204,0.57421227,69115.0,69108.0,0.062]
[1730727162409,0.072403,69112.0,69111.0,0.0724]
[1730727163202,0.072403,69109.0,69108.0,0.103404]
[1730727163407,0.57221827,69109.0,69108.0,0.103404]
[1730727164915,0.57221827,69109.0,69108.0,0.031]
[1730727165115,0.57321827,69109.0,69108.0,0.031]
[1730727165614,0.50081527,69109.0,69101.0,0.0307]
[1730727165819,0.21142627,69102.0,69101.0,0.136211]
[1730727166712,0.21142627,69102.0,69101.0,0.17984153]
[1730727166910,0.21242627,69102.0,69101.0,0.17984153]
[1730727167314,0.57322627,69102.0,69101.0,0.17984153]
[1730727167509,0.57422627,69102.0,69101.0,0.17984153]
[1730727169910,0.57422627,69102.0,69101.0,0.22287398]
[1730727170315,0.57422627,69102.0,69101.0,0.17984153]
[1730727171012,0.57422627,69102.0,69101.0,0.11604153]
[1730727172323,0.57322627,69102.0,69101.0,0.11604153]
[1730727172519,0.57422627,69102.0,69101.0,0.11604153]
[1730727172718,0.57322627,69102.0,69101.0,0.11604153]
[1730727172926,0.57422627,69102.0,69101.0,0.11604153]
[1730727177022,0.57422627,69102.0,69101.0,0.27672214]
[1730727177319,0.50181527,69102.0,69101.0,0.20499396]
[1730727177625,0.3628,69102.0,69101.0,0.20499396]
[1730727178430,0.3628,69102.0,69101.0,0.29106727]
[1730727178630,0.3628,69102.0,69101.0,0.20499396]
[1730727178815,0.435211,69102.0,69101.0,0.20499396]
[1730727179431,0.435211,69102.0,69101.0,0.29106727]
[1730727179628,0.435211,69102.0,69101.0,0.20499396]
[1730727180823,0.435211,69102.0,69101.0,0.20410566]
[1730727181527,0.435211,69102.0,69101.0,0.16047513]
[1730727182932,0.435211,69102.0,69101.0,0.08806413]
[1730727183830,0.435211,69102.0,69101.0,0.17447781]
[1730727184429,0.3628,69102.0,69101.0,0.08810451]
[1730727184634,0.435211,69102.0,69101.0,0.08810451]
[1730727186340,0.435211,69102.0,69101.0,0.17458469]
[1730727186845,0.435211,69102.0,69101.0,0.08810451]
[1730727187044,0.57422627,69102.0,69101.0,0.08810451]
[1730727187243,0.57422627,69102.0,69094.0,0.00217055]
[1730727187244,0.072415,69098.0,69096.0,1e-08]
[1730727187542,0.072415,69098.0,69094.0,0.00217055]
[1730727187543,0.21143327,69095.0,69094.0,0.00217055]
[1730727189133,0.072418,69095.0,69094.0,0.00217055]
[1730727189649,0.073418,69095.0,69094.0,0.00217055]
[1730727190046,0.074418,69095.0,69094.0,0.00217055]
[1730727191236,0.074418,69095.0,69094.0,0.07458955]
[1730727192351,0.002,69095.0,69094.0,0.07458955]
[1730727193343,0.002,69095.0,69094.0,0.50878955]
[1730727193546,0.3608,69110.0,69109.0,0.072403]
[1730727193938,0.3608,69110.0,69109.0,0.12996378]
[1730727194148,0.433202,69110.0,69109.0,0.12996378]
[1730727194344,0.433202,69110.0,69109.0,0.072403]
[1730727195355,0.433202,69110.0,69109.0,0.073403]
[1730727196444,0.3608,69110.0,69109.0,0.073403]
[1730727197444,0.433202,69110.0,69109.0,0.073403]
[1730727197947,0.3608,69110.0,69109.0,0.073403]
[1730727198550,0.433202,69110.0,69109.0,0.073403]
[1730727200745,0.3608,69110.0,69109.0,0.073403]
[1730727200947,0.3608,69110.0,69109.0,0.13101054]
[1730727201148,0.3608,69114.0,69113.0,0.072399]
[1730727201653,0.3608,69114.0,69113.0,0.12999413]
[1730727202045,0.3608,69114.0,69113.0,0.072399]
[1730727202459,0.3618,69114.0,69113.0,0.072399]
[1730727202753,0.3618,69114.0,69113.0,0.15774811]
[1730727202943,0.3618,69114.0,69113.0,0.072399]
[1730727203140,0.3648,69114.0,69113.0,0.072399]
[1730727204749,0.3618,69114.0,69113.0,0.072399]
[1730727205058,0.434198,69114.0,69113.0,0.073399]
[1730727205358,0.434198,69114.0,69113.0,0.074399]
[1730727205359,0.433198,69114.0,69113.0,0.074399]
[1730727205656,0.3608,69114.0,69113.0,0.11722627]
[1730727206457,0.433198,69114.0,69113.0,0.074399]
[1730727207158,0.433198,69114.0,69113.0,0.15979389]
[1730727207363,0.433198,69114.0,69113.0,0.074399]
[1730727208047,0.433198,69114.0,69113.0,0.073399]
[1730727208849,0.3608,69114.0,69113.0,0.073399]
[1730727209560,0.3608,69114.0,69113.0,0.072399]
[1730727209748,0.3608,69114.0,69113.0,0.073399]
[1730727210362,0.433198,69114.0,69113.0,0.074399]
[1730727210861,0.433198,69114.0,69113.0,0.073399]
[1730727211158,0.433198,69114.0,69113.0,0.002]
[1730727211354,0.433198,69114.0,69113.0,0.001]
[1730727211547,0.433198,69114.0,69113.0,0.04514978]
[1730727211752,0.433198,69114.0,69113.0,0.002]
[1730727213362,1.30629327,69114.0,69106.0,0.04314978]
[1730727213546,1.30629327,69114.0,69095.0,0.0303]
[1730727213547,0.49981527,69107.0,69102.0,0.04314978]
[1730727213748,0.43321,69103.0,69100.0,0.04314978]
[1730727213960,0.21142727,69101.0,69100.0,0.04314978]
[1730727214575,0.072413,69100.0,69099.0,0.04314978]
[1730727215060,0.072416,69097.0,69096.0,0.072416]
[1730727215360,0.433216,69097.0,69096.0,0.072416]
[1730727215746,0.072418,69095.0,69094.0,0.00217055]
[1730727216151,0.072418,69095.0,69094.0,0.07458955]
[1730727217762,0.073418,69095.0,69094.0,0.07458955]
[1730727218160,0.074418,69095.0,69094.0,0.07458955]
[1730727219068,0.074418,69095.0,69094.0,0.00217055]
[1730727219766,0.074418,69095.0,69094.0,0.07458955]
[1730727220267,0.074418,69095.0,69094.0,0.00217055]
[1730727222159,0.074418,69095.0,69094.0,0.08854373]
[1730727223165,0.074418,69095.0,69094.0,0.16053951]
[1730727223366,0.074418,69095.0,69094.0,0.07416633]
[1730727223568,0.074418,69095.0,69094.0,0.00217055]
[1730727224366,0.074418,69095.0,69094.0,0.04319943]
[1730727224367,0.508618,69095.0,69094.0,0.04319943]
[1730727224765,0.508618,69095.0,69085.0,0.072428]
[1730727224766,0.072419,69094.0,69093.0,0.04319943]
[1730727224964,0.072422,69091.0,69090.0,0.05759444]
[1730727225271,0.1016,69091.0,69089.0,0.05759444]
[1730727225462,0.21143827,69090.0,69089.0,0.05759444]
[1730727225660,0.072424,69089.0,69088.0,0.05759444]
[1730727225969,0.433224,69089.0,69088.0,0.05759444]
[1730727226171,0.433224,69089.0,69088.0,0.13001944]
[1730727227162,0.434224,69089.0,69088.0,0.13001944]
[1730727227365,0.434224,69089.0,69088.0,0.072425]
[1730727227674,0.435224,69089.0,69088.0,0.072425]
[1730727229262,0.435224,69089.0,69088.0,0.11557577]
[1730727229469,0.072425,69088.0,69086.0,0.04315077]
[1730727229660,0.57224127,69087.0,69086.0,0.04315077]
[1730727229967,0.072427,69086.0,69085.0,0.04315077]
[1730727230475,0.072428,69085.0,69084.0,0.04315077]
[1730727230677,0.072428,69085.0,69084.0,0.11557977]
[1730727231670,0.072428,69085.0,69084.0,0.072429]
[1730727233063,0.073428,69085.0,69084.0,0.072429]
[1730727233767,0.074428,69085.0,69084.0,0.072429]
[1730727234579,0.002,69085.0,69082.0,0.04316039]
[1730727234779,0.13901527,69083.0,69081.0,0.04316039]
[1730727234966,0.13901527,69083.0,69079.0,0.0431633]
[1730727234967,0.072434,69080.0,69079.0,0.0431633]
[1730727235167,0.072437,69077.0,69076.0,0.04316828]
[1730727235379,0.433237,69077.0,69076.0,0.04316828]
[1730727235670,0.072438,69076.0,69075.0,0.04316828]
[1730727235860,0.07244,69074.0,69073.0,0.0328]
[1730727236374,0.072439,69075.0,69073.0,0.04317467]
[1730727236679,0.18342108,69076.0,69070.0,0.04534651]
[1730727236871,0.57225827,69071.0,69069.0,0.04317987]
[1730727237071,0.072445,69069.0,69068.0,0.04317987]
[1730727237273,0.072448,69066.0,69065.0,0.05753593]
[1730727237465,0.072449,69065.0,69064.0,0.05753593]
[1730727237665,0.21146427,69065.0,69064.0,0.07245]
[1730727238266,0.13901527,69065.0,69064.0,0.07245]
[1730727238670,0.13901527,69065.0,69064.0,0.12998593]
[1730727239070,0.14001527,69065.0,69064.0,0.12998593]
[1730727239271,0.14001527,69065.0,69064.0,0.07245]
[1730727239583,0.14001527,69065.0,69064.0,0.13001794]
[1730727239880,0.14101527,69065.0,69064.0,0.07245]
[1730727240278,0.14101527,69065.0,69064.0,0.13001794]
[1730727240578,0.14101527,69065.0,69064.0,0.07245]
[1730727240770,0.14101527,69065.0,69064.0,0.13004131]
[1730727241369,0.14101527,69065.0,69064.0,0.13004949]
[1730727241986,0.21346427,69065.0,69064.0,0.07245]
[1730727242177,0.21346427,69065.0,69064.0,0.1300484]
[1730727242483,0.21346427,69065.0,69064.0,0.13006886]
[1730727242673,0.21346427,69065.0,69064.0,0.07245]
[1730727243292,0.58003054,69065.0,69064.0,0.04321923]
[1730727243472,0.43436,69064.0,69045.0,0.0332]
[1730727243788,0.57228427,69046.0,69045.0,0.0332]
[1730727245279,0.57228427,69046.0,69041.0,0.072472]
[1730727245280,0.072474,69042.0,69041.0,0.072472]
[1730727245482,0.072472,69045.0,69044.0,0.07247]
[1730727246169,0.072472,69045.0,69035.0,0.098]
[1730727246368,0.433277,69040.0,69039.0,0.072475]
[1730727246777,0.001,69042.0,69039.0,0.072475]
[1730727247085,0.3608,69046.0,69045.0,0.07247]
[1730727247268,0.433269,69046.0,69045.0,0.07247]
[1730727247474,0.57228427,69046.0,69045.0,0.07247]
[1730727247673,0.57328427,69046.0,69045.0,0.07247]
[1730727247875,0.50081527,69046.0,69045.0,0.07247]
[1730727248494,0.49981527,69046.0,69045.0,0.07247]
[1730727248684,0.3618,69046.0,69045.0,0.07247]
[1730727248984,0.001,69046.0,69045.0,0.07247]
[1730727249175,0.002,69046.0,69045.0,0.07347]
[1730727249776,0.07248,69036.0,69035.0,0.0323]
[1730727249978,0.3608,69036.0,69035.0,0.104781]
[1730727250581,0.43328,69036.0,69035.0,0.104781]
[1730727250781,0.3608,69036.0,69035.0,0.104781]
[1730727251091,0.3618,69036.0,69035.0,0.104781]
[1730727251395,0.43428,69036.0,69035.0,0.0323]
[1730727251586,0.3618,69036.0,69035.0,0.104781]
[1730727252293,0.001,69036.0,69035.0,0.104781]
[1730727252483,0.002,69036.0,69035.0,0.104781]
[1730727255891,0.43528,69036.0,69035.0,0.104781]
[1730727258585,0.3628,69036.0,69035.0,0.072481]
[1730727258793,0.3628,69036.0,69030.0,0.3608]
[1730727258794,0.072484,69033.0,69032.0,0.072481]
[1730727259898,0.001,69036.0,69035.0,0.072481]
[1730727260492,0.001,69036.0,69030.0,0.3608]
[1730727260493,0.072476,69040.0,69039.0,0.072475]
[1730727261495,0.3608,69042.0,69041.0,0.072475]
[1730727263887,0.13901527,69048.0,69041.0,0.072475]
[1730727264096,0.13901527,69048.0,69047.0,0.072468]
[1730727264597,0.433265,69050.0,69049.0,0.072466]
[1730727265486,0.3608,69050.0,69049.0,0.072466]
[1730727265793,0.3608,69050.0,69042.0,0.0628]
[1730727266091,0.21148527,69046.0,69045.0,0.072467]
[1730727266600,0.13901527,69046.0,69042.0,0.0305]
[1730727266799,0.072472,69043.0,69042.0,0.102973]
[1730727266987,0.3608,69044.0,69043.0,0.072472]
[1730727267188,0.433271,69044.0,69043.0,0.072472]
[1730727268701,0.3618,69044.0,69036.0,0.3608]
[1730727268994,0.433278,69038.0,69037.0,0.08659181]
[1730727269199,0.57229327,69038.0,69037.0,0.08659181]
[1730727269384,0.57229327,69038.0,69037.0,0.08673821]
[1730727269894,0.072482,69034.0,69033.0,0.072483]
[1730727270092,0.072482,69034.0,69033.0,0.15937249]
[1730727270887,0.072482,69034.0,69033.0,0.08688949]
[1730727271397,0.072486,69030.0,69027.0,0.08635027]
[1730727271587,0.433286,69030.0,69029.0,0.08931782]
[1730727271785,0.433286,69030.0,69029.0,0.00217314]
[1730727272798,0.434286,69030.0,69029.0,0.00217314]
[1730727273188,0.072487,69029.0,69028.0,0.072487]
[1730727273389,0.072487,69029.0,69028.0,0.16000403]
[1730727273690,0.072487,69029.0,69028.0,0.23233323]
[1730727274090,0.072487,69029.0,69028.0,0.23235119]
[1730727274595,0.073487,69029.0,69028.0,0.1448162]
[1730727274788,0.073487,69029.0,69019.0,0.0302]
[1730727274789,0.508087,69029.0,69019.0,0.08635027]
[1730727274990,0.072499,69018.0,69015.0,0.08635027]
[1730727275186,0.13901527,69019.0,69016.0,0.08775845]
[1730727275393,0.072499,69018.0,69017.0,0.08801896]
[1730727275601,0.072502,69015.0,69014.0,0.072502]
[1730727275898,0.072502,69015.0,69014.0,0.1600254]
[1730727276605,0.072502,69015.0,69014.0,0.072502]
[1730727277102,0.073502,69015.0,69014.0,0.072502]
[1730727278191,0.074502,69015.0,69014.0,0.072502]
[1730727278392,0.072506,69012.0,69011.0,0.072505]
[1730727278600,0.433306,69012.0,69011.0,0.072505]
[1730727279700,0.434306,69012.0,69011.0,0.072505]
[1730727279898,0.072506,69011.0,69010.0,0.00217325]
[1730727281101,0.072506,69011.0,69010.0,0.07468025]
[1730727281790,0.074506,69011.0,69010.0,0.07468025]
[1730727282705,0.13901527,69021.0,69019.0,0.072498]
[1730727282907,0.433297,69020.0,69019.0,0.072498]
[1730727285102,0.433297,69020.0,69019.0,0.073498]
[1730727286210,0.3608,69020.0,69019.0,0.073498]
[1730727288904,0.3608,69020.0,69019.0,0.103598]
[1730727289107,0.3608,69027.0,69026.0,0.07249]
[1730727289504,0.433289,69027.0,69026.0,0.07249]
[1730727290106,0.3608,69027.0,69026.0,0.07249]
[1730727290501,0.3648,69027.0,69026.0,0.07249]
[1730727291703,0.3708,69027.0,69026.0,0.07249]
[1730727292912,0.3608,69027.0,69026.0,0.07449]
[1730727293709,0.3618,69027.0,69026.0,0.07449]
[1730727294715,0.3628,69027.0,69026.0,0.16141919]
[1730727295113,0.3618,69027.0,69026.0,0.16041919]
[1730727295411,0.3628,69027.0,69026.0,0.16141919]
[1730727296013,0.3628,69027.0,69026.0,0.20593247]
[1730727296912,0.3618,69027.0,69026.0,0.20493247]
[1730727297115,0.3628,69027.0,69026.0,0.20593247]
[1730727297716,0.3628,69027.0,69026.0,0.11900328]
[1730727298113,0.3628,69027.0,69026.0,0.07449]
[1730727298321,0.435289,69027.0,69026.0,0.07449]
[1730727298619,0.435289,69027.0,69026.0,0.002]
[1730727299314,0.434289,69027.0,69026.0,0.001]
[1730727299814,0.435289,69027.0,69026.0,0.002]
[1730727300517,0.438289,69027.0,69026.0,0.001]
[1730727300720,0.48192324,69027.0,69026.0,0.001]
[1730727300911,1.28304951,69027.0,69005.0,0.08635027]
[1730727301112,1.28304951,69027.0,68997.0,0.44715027]
[1730727301113,0.57232127,69011.0,68997.0,0.44715027]
[1730727301317,0.072517,69002.0,69001.0,0.072517]
[1730727301810,0.3608,69004.0,69003.0,0.072514]
[1730727301811,0.433314,69004.0,69003.0,0.072514]
[1730727302218,0.433313,69004.0,69003.0,0.072514]
[1730727302916,0.3608,69004.0,69003.0,0.072514]
[1730727303415,0.3608,69004.0,69003.0,0.13134669]
[1730727303416,0.3618,69004.0,69003.0,0.13134669]
[1730727303619,0.001,69004.0,69003.0,0.073514]
[1730727303917,0.001,69004.0,69003.0,0.508274]
[1730727304109,0.001,69004.0,69003.0,0.16134439]
[1730727304414,0.002,69004.0,69003.0,0.6036985]
[1730727304614,0.002,69004.0,69003.0,0.073514]
[1730727305415,0.074513,69004.0,69003.0,0.073514]
[1730727305917,0.074513,69004.0,69003.0,0.001]
[1730727306322,0.074513,69004.0,69003.0,0.073515]
[1730727307810,0.074513,69004.0,69003.0,0.001]
[1730727311623,0.074513,69004.0,69003.0,0.08910537]
[1730727313329,0.074513,69004.0,69003.0,0.16162037]
[1730727314230,0.07447114,69004.0,69003.0,0.16162037]
[1730727314421,0.07447114,69004.0,69003.0,0.16166954]
[1730727316329,0.07447114,69004.0,69003.0,0.08915454]
[1730727316834,0.07447114,69004.0,69003.0,0.1613668]
[1730727317030,0.07447114,69004.0,69003.0,0.07321226]
[1730727317237,0.07447114,69004.0,69003.0,0.001]
[1730727317739,0.07447114,69004.0,69003.0,0.05876868]
[1730727318233,0.50923114,69004.0,69003.0,0.001]
[1730727318732,0.072517,69001.0,69000.0,0.1]
[1730727319037,0.072517,69001.0,68993.0,0.05776651]
[1730727319038,0.072522,68996.0,68993.0,0.05776651]
[1730727319237,0.072522,68996.0,68973.0,0.1156471]
[1730727319238,0.63883054,68994.0,68963.0,0.04277662]
[1730727319437,0.63883054,68994.0,68964.0,0.10922763]
[1730727319438,0.3608,68967.0,68964.0,0.10922763]
[1730727319733,0.3608,68967.0,68962.0,0.07546059]
[1730727319939,0.433353,68967.0,68966.0,0.072553]
[1730727320133,0.3608,68967.0,68966.0,0.072553]
[1730727320633,0.433345,68975.0,68974.0,0.072545]
[1730727321038,0.3608,68975.0,68974.0,0.072545]
[1730727321244,0.00217548,68981.0,68980.0,0.072539]
[1730727321533,0.3608,68983.0,68982.0,0.072537]
[1730727321737,0.07254,68979.0,68976.0,0.072543]
[1730727321929,0.07254,68979.0,68977.0,0.0638]
[1730727323250,0.001,68979.0,68977.0,0.0638]
[1730727323427,0.001,68979.0,68978.0,0.072541]
[1730727325341,0.3608,68983.0,68982.0,0.072537]
[1730727325847,0.3608,68983.0,68978.0,0.072534]
[1730727326141,0.001,68979.0,68978.0,0.072534]
[1730727326331,0.002,68979.0,68978.0,0.073534]
[1730727327748,0.001,68979.0,68978.0,0.073534]
[1730727328237,0.072532,68981.0,68980.0,0.072532]
[1730727328632,0.072533,68979.0,68978.0,0.074534]
[1730727328828,0.3618,68983.0,68978.0,0.002]
[1730727329043,0.072532,68981.0,68980.0,0.07253]
[1730727329438,0.073532,68981.0,68980.0,0.07253]
[1730727331128,0.001,68981.0,68980.0,0.07253]
[1730727331542,0.433323,68989.0,68981.0,0.072531]
[1730727331736,0.001,68983.0,68982.0,0.07253]
[1730727332154,0.433323,68989.0,68985.0,0.072524]
[1730727332155,0.072526,68986.0,68985.0,0.072524]
[1730727332943,0.3608,68989.0,68988.0,0.072524]
[1730727333149,0.7236,68965.0,68947.0,0.10119121]
[1730727333347,0.7216,68948.0,68947.0,0.04339044]
[1730727333544,0.7216,68948.0,68947.0,0.08024152]
[1730727334135,0.7216,68948.0,68947.0,0.18876152]
[1730727335034,0.7226,68948.0,68947.0,0.19076152]
[1730727335233,0.86161527,68948.0,68947.0,0.00967452]
[1730727335647,0.7236,68948.0,68947.0,0.08424152]
[1730727336247,0.7246,68948.0,68947.0,0.08424152]
[1730727336547,0.7246,68948.0,68947.0,0.19276152]
[1730727336747,0.7246,68948.0,68947.0,0.08424152]
[1730727336941,0.7246,68948.0,68947.0,0.10856]
[1730727337248,0.7246,68948.0,68947.0,0.072567]
[1730727337444,0.7246,68948.0,68947.0,0.181127]
[1730727337746,0.072567,68947.0,68935.0,0.072579]
[1730727337949,0.3608,68936.0,68935.0,0.072579]
[1730727338142,0.3638,68948.0,68943.0,0.072571]
[1730727338143,0.003,68948.0,68943.0,0.072571]
[1730727338332,0.3139,68952.0,68951.0,0.072563]
[1730727338539,0.6248,68952.0,68951.0,0.08492501]
[1730727338939,0.6248,68952.0,68951.0,0.072563]
[1730727339345,0.6248,68952.0,68951.0,0.181123]
[1730727340148,0.6248,68952.0,68951.0,0.55132716]
[1730727340340,0.6248,68952.0,68951.0,0.67218469]
[1730727340850,0.6258,68952.0,68951.0,0.67218469]
[1730727341045,0.6268,68952.0,68951.0,0.23810469]
[1730727341438,0.6268,68952.0,68951.0,0.22580716]
[1730727341634,0.6268,68952.0,68951.0,0.3258906]
[1730727342750,0.6268,68952.0,68951.0,0.2173306]
[1730727342945,0.6268,68952.0,68951.0,0.3258906]
[1730727343647,0.6268,68952.0,68951.0,0.84751297]
[1730727343836,0.6268,68952.0,68951.0,0.7609706]
[1730727344037,0.6268,68952.0,68951.0,0.84751285]
[1730727344446,0.6268,68952.0,68951.0,0.76089802]
[1730727344839,0.6268,68952.0,68951.0,0.86554999]
[1730727345039,0.6268,68952.0,68951.0,0.85326014]
[1730727345254,0.6268,68952.0,68951.0,0.86551633]
[1730727346948,0.6268,68952.0,68951.0,0.86553359]
[1730727348946,0.6268,68952.0,68951.0,0.87321029]
[1730727349140,0.6268,68952.0,68951.0,0.99478398]
[1730727350146,0.6268,68952.0,68951.0,0.99480056]
[1730727350351,0.55421115,68952.0,68951.0,0.99480056]
[1730727350551,0.55421115,68952.0,68951.0,0.99551527]
[1730727350771,0.55421115,68952.0,68951.0,0.66165629]
[1730727350947,0.55421115,68952.0,68951.0,0.33008998]